bitfinex/quotes_BTCUSD_20250213
["timestamp","ask_amount","ask_price","bid_price","bid_amount"]
[1739432977586,0.00023844,96153.0,96152.0,0.34862586]
[1739432977888,0.00023844,96153.0,96152.0,0.35662586]
[1739432978128,0.00023844,96153.0,96152.0,0.35162586]
[1739432978526,0.00023844,96153.0,96152.0,0.35362586]
[1739432978717,0.00023844,96153.0,96152.0,0.58502951]
[1739432979753,0.00023844,96153.0,96152.0,1.45852951]
[1739432984026,4.4e-07,96153.0,96152.0,1.45852951]
[1739432989494,4.4e-07,96153.0,96152.0,1.50118127]
[1739432990129,4.4e-07,96153.0,96152.0,1.50140492]
[1739432991091,0.00010694,96153.0,96152.0,1.50140492]
[1739432992737,0.00010694,96153.0,96152.0,1.49140492]
[1739432992935,0.00010694,96153.0,96152.0,1.50140492]
[1739432993178,0.00010694,96153.0,96152.0,1.27300127]
[1739432994570,0.00010694,96153.0,96152.0,1.26262684]
[1739432997694,0.00010694,96153.0,96152.0,0.71612684]
[1739432998470,0.00010694,96153.0,96152.0,0.71312684]
[1739432998883,0.00110694,96153.0,96152.0,0.72612684]
[1739432999233,0.00110694,96153.0,96152.0,0.72112684]
[1739432999536,0.00010694,96153.0,96152.0,0.71512684]
[1739432999762,0.00110694,96153.0,96152.0,0.72012684]
[1739433001050,0.00110694,96153.0,96152.0,0.71750298]
[1739433001444,0.00110694,96153.0,96152.0,0.54484951]
[1739433002093,0.00010694,96153.0,96152.0,0.52584951]
[1739433002296,0.00010694,96153.0,96152.0,0.35384751]
[1739433002297,0.07570694,96153.0,96152.0,0.35384751]
[1739433002467,0.07670694,96153.0,96152.0,0.36484751]
[1739433002669,0.07670694,96153.0,96152.0,0.51384951]
[1739433002866,0.07570694,96153.0,96152.0,0.50984951]
[1739433003411,0.07570694,96153.0,96152.0,0.51884951]
[1739433003412,0.07670694,96153.0,96152.0,0.51884951]
[1739433004287,0.00110694,96153.0,96152.0,0.53484951]
[1739433004695,0.00010694,96153.0,96152.0,0.52884951]
[1739433004893,0.00010694,96153.0,96152.0,0.52584951]
[1739433005094,0.00210694,96153.0,96152.0,0.51584951]
[1739433005298,0.00210694,96153.0,96152.0,0.48422565]
[1739433005638,0.08070694,96153.0,96152.0,0.50384951]
[1739433005840,0.08070694,96153.0,96152.0,0.49422565]
[1739433006042,0.08770694,96153.0,96152.0,0.50484951]
[1739433006463,0.08770694,96153.0,96152.0,0.17784951]
[1739433007059,0.00710694,96153.0,96152.0,0.17784951]
[1739433007239,0.10961059,96153.0,96152.0,0.16822565]
[1739433007443,0.10961059,96153.0,96152.0,0.17784951]
[1739433007641,0.18921059,96153.0,96152.0,0.01222365]
[1739433007972,0.20212815,96153.0,96152.0,0.01222365]
[1739433008209,0.20212815,96153.0,96152.0,0.00222365]
[1739433008406,0.40372915,96153.0,96152.0,0.00222365]
[1739433008684,0.24772815,96153.0,96152.0,0.15822565]
[1739433008911,0.24772815,96153.0,96152.0,0.16822565]
[1739433009295,0.23481059,96153.0,96152.0,0.16822565]
[1739433009728,0.24772797,96153.0,96152.0,0.16822565]
[1739433016579,0.02002432,96153.0,96152.0,0.20084951]
[1739433017000,0.00710694,96153.0,96152.0,0.20084951]
[1739433017397,0.00710694,96153.0,96152.0,0.17784951]
[1739433017968,0.00710694,96153.0,96152.0,0.01222365]
[1739433018151,0.00710694,96153.0,96152.0,0.16822565]
[1739433018349,0.12252297,96153.0,96152.0,0.01222365]
[1739433018550,0.17232297,96153.0,96152.0,0.16822565]
[1739433018747,0.17232297,96153.0,96152.0,0.00222365]
[1739433020144,0.17232297,96153.0,96152.0,0.15822565]
[1739433021282,0.12252297,96153.0,96152.0,0.15822565]
[1739433021491,0.10961059,96153.0,96152.0,0.16822565]
[1739433021803,0.12251846,96153.0,96152.0,0.16822565]
[1739433022015,0.10961059,96153.0,96152.0,0.16822565]
[1739433022218,0.12251846,96153.0,96152.0,0.16822565]
[1739433022418,0.10961059,96153.0,96152.0,0.16822565]
[1739433022760,0.10961059,96153.0,96152.0,0.01222365]
[1739433023341,0.12251846,96153.0,96152.0,0.16822565]
[1739433023550,0.10961059,96153.0,96152.0,0.16822565]
[1739433023743,0.12251833,96153.0,96152.0,0.16822565]
[1739433024089,0.12251838,96153.0,96152.0,0.16822565]
[1739433027774,0.12251838,96153.0,96152.0,0.01222365]
[1739433027975,0.12251838,96153.0,96152.0,0.16822565]
[1739433028200,0.10961059,96153.0,96152.0,0.16822565]
[1739433031645,0.10961059,96153.0,96152.0,0.17784951]
[1739433036182,0.12469991,96153.0,96152.0,0.17784951]
[1739433036386,0.10961059,96153.0,96152.0,0.17784951]
[1739433036655,0.12470005,96153.0,96152.0,0.17784951]
[1739433036809,0.10961059,96153.0,96152.0,0.17784951]
[1739433037790,0.10961059,96153.0,96152.0,0.01222365]
[1739433038319,0.12470005,96153.0,96152.0,0.00222365]
[1739433038559,0.28070105,96153.0,96152.0,0.00222365]
[1739433038735,0.50640105,96153.0,96152.0,0.00222365]
[1739433039598,0.50960268,96153.0,96152.0,0.00122365]
[1739433039816,0.50960268,96153.0,96152.0,0.00222365]
[1739433039817,0.52360268,96153.0,96152.0,0.00222365]
[1739433040386,0.52360268,96153.0,96152.0,0.00122365]
[1739433040554,0.57440268,96153.0,96152.0,0.00122365]
[1739433040850,0.55940268,96153.0,96152.0,0.00022365]
[1739433041050,0.56040268,96153.0,96152.0,0.00022365]
[1739433041648,0.56140268,96153.0,96152.0,0.00022365]
[1739433042231,0.57640268,96153.0,96152.0,0.00122365]
[1739433042431,0.57440268,96153.0,96152.0,0.00122365]
[1739433042827,0.55940268,96153.0,96152.0,0.00022365]
[1739433043476,0.57440268,96153.0,96152.0,0.00122365]
[1739433044458,0.57540268,96153.0,96152.0,0.00122365]
[1739433056573,0.56520105,96153.0,96152.0,0.00122365]
[1739433059343,0.5708083,96153.0,96152.0,0.00122365]
[1739433061175,0.56520105,96153.0,96152.0,0.00122365]
[1739433061381,0.40920005,96153.0,96135.0,0.08354483]
[1739433061592,0.306028,96136.0,96135.0,0.09391926]
[1739433061763,0.40853165,96136.0,96135.0,0.09391926]
[1739433061964,0.42391539,96136.0,96135.0,0.01059808]
[1739433062553,0.42391539,96136.0,96135.0,0.01159808]
[1739433062755,0.42952352,96136.0,96135.0,0.01159808]
[1739433063159,0.42952352,96136.0,96135.0,0.01059808]
[1739433063400,0.44452352,96136.0,96135.0,0.01159808]
[1739433064181,0.44752352,96136.0,96135.0,0.01159808]
[1739433064379,0.01926958,96138.0,96137.0,0.27840909]
[1739433064581,0.25852865,96138.0,96137.0,0.27840909]
[1739433065680,0.29760536,96138.0,96137.0,0.27840909]
[1739433070666,0.30322435,96138.0,96137.0,0.27840909]
[1739433072435,0.31773569,96138.0,96137.0,0.27840909]
[1739433078495,0.3121167,96138.0,96137.0,0.27840909]
[1739433080707,0.29760536,96138.0,96137.0,0.27840909]
[1739433081282,0.31211998,96138.0,96137.0,0.27840909]
[1739433086882,0.31211998,96138.0,96137.0,0.27863274]
[1739433087061,0.31222648,96138.0,96137.0,0.27863274]
[1739433087267,0.31784829,96138.0,96137.0,0.27863274]
[1739433090867,0.31784829,96138.0,96137.0,0.2461217]
[1739433093555,0.31222648,96138.0,96137.0,0.2461217]
[1739433096740,0.53870262,96138.0,96137.0,0.20479335]
[1739433097345,0.63219389,96138.0,96137.0,0.20479335]
[1739433097549,0.61419389,96138.0,96137.0,0.14345435]
[1739433097768,0.61819389,96138.0,96137.0,0.14445435]
[1739433097970,0.63319389,96138.0,96137.0,0.14545435]
[1739433098837,0.75469754,96138.0,96137.0,0.10358435]
[1739433099126,0.78999754,96138.0,96137.0,0.10358435]
[1739433099815,0.78999754,96138.0,96137.0,0.05158435]
[1739433100149,0.41000314,96137.0,96136.0,0.30608435]
[1739433100324,0.52698291,96137.0,96136.0,0.31645878]
[1739433100633,0.58546717,96137.0,96136.0,0.31645878]
[1739433100843,0.52698291,96137.0,96136.0,0.31645878]
[1739433101196,0.54198291,96137.0,96136.0,0.31745878]
[1739433101640,0.87698291,96137.0,96136.0,0.31845878]
[1739433110283,0.87698291,96137.0,96136.0,0.31868243]
[1739433117635,0.79638291,96137.0,96136.0,0.31868243]
[1739433118426,0.77338291,96137.0,96136.0,0.31868243]
[1739433121614,0.77300677,96137.0,96136.0,0.31868243]
[1739433121737,0.62300677,96137.0,96136.0,0.31868243]
[1739433122545,0.62311327,96137.0,96136.0,0.31868243]
[1739433122760,0.60111327,96137.0,96136.0,0.31668243]
[1739433123181,0.62311327,96137.0,96136.0,0.31868243]
[1739433125746,0.71639402,96137.0,96136.0,0.31868243]
[1739433125969,0.72192176,96137.0,96136.0,0.28616783]
[1739433126152,0.72192176,96137.0,96136.0,0.36948901]
[1739433126334,0.72192176,96137.0,96136.0,0.28616783]
[1739433128404,0.71639402,96137.0,96136.0,0.28616783]
[1739433129040,0.62311327,96137.0,96136.0,0.28616783]
[1739433130281,0.62311327,96137.0,96136.0,0.2757934]
[1739433136826,0.71639402,96137.0,96136.0,0.2757934]
[1739433139088,0.56036702,96137.0,96136.0,0.48501458]
[1739433139293,0.71639402,96137.0,96136.0,0.4016934]
[1739433140183,0.62311327,96137.0,96136.0,0.4016934]
[1739433143250,0.29511327,96137.0,96136.0,0.3564934]
[1739433143448,0.29511327,96137.0,96136.0,0.2757934]
[1739433156366,0.29511327,96137.0,96136.0,0.3536934]
[1739433156367,0.13908627,96137.0,96136.0,0.3536934]
[1739433156527,0.29511327,96137.0,96136.0,0.3536934]
[1739433156732,0.29521072,96137.0,96136.0,0.3536934]
[1739433158626,0.29521072,96137.0,96136.0,0.2757934]
[1739433161232,0.29521072,96137.0,96136.0,0.3526934]
[1739433162023,0.13918372,96137.0,96136.0,0.3526934]
[1739433162565,0.29521072,96137.0,96136.0,0.3526934]
[1739433163592,0.13918372,96137.0,96136.0,0.3526934]
[1739433164033,0.29521072,96137.0,96136.0,0.3526934]
[1739433164233,0.13918372,96137.0,96136.0,0.3526934]
[1739433164415,0.11718372,96137.0,96136.0,0.3506934]
[1739433164640,0.11918372,96137.0,96136.0,0.3506934]
[1739433164780,0.13118372,96137.0,96136.0,0.3516934]
[1739433164981,0.28721072,96137.0,96136.0,0.3516934]
[1739433165488,0.27521072,96137.0,96136.0,0.3506934]
[1739433165691,0.27521072,96137.0,96136.0,0.3516934]
[1739433165984,0.28721072,96137.0,96136.0,0.3516934]
[1739433166550,0.28721072,96137.0,96136.0,0.2747934]
[1739433167822,0.28521072,96137.0,96136.0,0.2737934]
[1739433168027,0.27321072,96137.0,96136.0,0.2737934]
[1739433168222,0.28921072,96137.0,96136.0,0.2747934]
[1739433178763,0.38260796,96137.0,96136.0,0.2747934]
[1739433181918,0.28921072,96137.0,96136.0,0.2747934]
[1739433187550,0.13318372,96137.0,96136.0,0.3577934]
[1739433187960,0.28921072,96137.0,96136.0,0.3577934]
[1739433189427,0.13318372,96137.0,96136.0,0.3577934]
[1739433190512,0.28921072,96137.0,96136.0,0.3577934]
[1739433191309,0.13318372,96137.0,96136.0,0.3577934]
[1739433192021,0.28921072,96137.0,96136.0,0.3577934]
[1739433192281,0.27463715,96137.0,96136.0,0.3577934]
[1739433192531,0.28934604,96137.0,96136.0,0.3577934]
[1739433196380,0.28934604,96137.0,96136.0,0.2747934]
[1739433198268,0.13331904,96137.0,96136.0,0.3508934]
[1739433198686,0.11861015,96137.0,96136.0,0.3508934]
[1739433198948,0.11861015,96137.0,96136.0,0.3608934]
[1739433199540,0.11861015,96137.0,96136.0,0.5662214]
[1739433199777,0.11861015,96137.0,96136.0,0.4101934]
[1739433200392,0.1333792,96137.0,96136.0,0.4101934]
[1739433201252,0.1333792,96137.0,96136.0,0.4001934]
[1739433201461,0.1333792,96137.0,96136.0,0.2747934]
[1739433201462,0.2894062,96137.0,96136.0,0.2747934]
[1739433201665,0.27463715,96137.0,96136.0,0.2747934]
[1739433201873,0.28940609,96137.0,96136.0,0.2747934]
[1739433235221,0.27640609,96137.0,96136.0,0.2737934]
[1739433235643,0.28640609,96137.0,96136.0,0.2747934]
[1739433235869,0.29140609,96137.0,96136.0,0.2747934]
[1739433236078,0.27840609,96137.0,96136.0,0.2737934]
[1739433236291,0.29340609,96137.0,96136.0,0.2747934]
[1739433241007,0.44340609,96137.0,96136.0,0.2747934]
[1739433243295,0.52725417,96137.0,96136.0,0.2747934]
[1739433243506,0.52763031,96137.0,96136.0,0.24814227]
[1739433243682,0.52763031,96137.0,96136.0,0.2269639]
[1739433243878,0.44378223,96137.0,96136.0,0.2269639]
[1739433244716,0.43878223,96137.0,96136.0,0.2269639]
[1739433244921,0.44278223,96137.0,96136.0,0.2269639]
[1739433245348,0.43878223,96137.0,96136.0,0.2269639]
[1739433245560,0.44578223,96137.0,96136.0,0.2279639]
[1739433245750,0.43078223,96137.0,96136.0,0.2269639]
[1739433245976,0.44478223,96137.0,96136.0,0.2269639]
[1739433246398,0.43078223,96137.0,96136.0,0.2269639]
[1739433246804,0.44478223,96137.0,96136.0,0.2269639]
[1739433249352,0.44440609,96137.0,96136.0,0.2269639]
[1739433249753,0.29440609,96137.0,96136.0,0.2269639]
[1739433250688,0.29440609,96137.0,96136.0,0.1663439]
[1739433250890,0.29440609,96137.0,96135.0,0.28914985]
[1739433250891,0.15037614,96136.0,96135.0,0.28914985]
[1739433251090,0.32940614,96135.0,96134.0,0.02621926]
[1739433251295,0.32940614,96135.0,96132.0,0.41477273]
[1739433251296,0.56370914,96133.0,96132.0,0.41477273]
[1739433251540,0.66621279,96133.0,96132.0,0.35567005]
[1739433251740,0.68101965,96133.0,96132.0,0.24654912]
[1739433251955,0.68101965,96133.0,96132.0,0.22574412]
[1739433252155,0.68101965,96133.0,96132.0,0.18413412]
[1739433252398,0.7835233,96133.0,96132.0,0.04498782]
[1739433252599,0.7835233,96133.0,96131.0,0.93181819]
[1739433252600,0.43891114,96132.0,96131.0,0.88690209]
[1739433252801,0.66441479,96132.0,96131.0,0.83578305]
[1739433253008,0.71156613,96132.0,96131.0,0.70556141]
[1739433253404,0.71156613,96132.0,96131.0,0.59252141]
[1739433253699,0.71156613,96132.0,96131.0,0.53352141]
[1739433253700,0.78172546,96132.0,96131.0,0.53352141]
[1739433253910,0.78172546,96132.0,96131.0,0.42610641]
[1739433254511,0.78172546,96132.0,96131.0,0.38449641]
[1739433254981,0.81754252,96132.0,96131.0,0.28827641]
[1739433255253,0.81754252,96132.0,96131.0,0.22937141]
[1739433255666,0.82454252,96132.0,96131.0,0.18488355]
[1739433255877,0.82454252,96132.0,96131.0,0.1432667]
[1739433256023,0.82454252,96132.0,96129.0,0.45339034]
[1739433256024,0.32941414,96130.0,96129.0,0.45339034]
[1739433256231,0.67487459,96130.0,96129.0,0.4115809]
[1739433256857,0.67487459,96130.0,96129.0,0.34787542]
[1739433257919,0.67487459,96130.0,96129.0,0.32706942]
[1739433258071,0.74290488,96130.0,96129.0,0.23784542]
[1739433258480,0.74990488,96130.0,96129.0,0.19667496]
[1739433259737,0.74990488,96130.0,96129.0,0.13407571]
[1739433260114,0.74990488,96130.0,96129.0,0.05085171]
[1739433261562,0.74990488,96130.0,96129.0,0.02404571]
[1739433261779,0.74990488,96130.0,96129.0,0.00323971]
[1739433261952,0.45581614,96129.0,96128.0,0.82493649]
[1739433262161,0.66082344,96129.0,96128.0,0.82493649]
[1739433262710,0.67558209,96129.0,96128.0,0.82493649]
[1739433263068,0.69058209,96129.0,96128.0,0.78332449]
[1739433263488,0.69058209,96129.0,96128.0,0.72947304]
[1739433263890,0.69058209,96129.0,96128.0,0.68808469]
[1739433264096,0.69058209,96129.0,96128.0,0.64647269]
[1739433264266,0.69058209,96129.0,96128.0,0.60486069]
[1739433264849,0.68258209,96129.0,96128.0,0.60486069]
[1739433265064,0.69058209,96129.0,96128.0,0.52163669]
[1739433265319,0.69758209,96129.0,96128.0,0.50083069]
[1739433265527,0.68258209,96129.0,96128.0,0.50083069]
[1739433265751,0.69758209,96129.0,96128.0,0.50083069]
[1739433265966,0.69758209,96129.0,96128.0,0.48002469]
[1739433267811,0.69758209,96129.0,96128.0,0.40802214]
[1739433268104,1.02558209,96129.0,96128.0,0.36641014]
[1739433269507,1.02558209,96129.0,96128.0,0.32479814]
[1739433270098,0.67349876,96129.0,96128.0,0.26238014]
[1739433270279,0.52433574,96129.0,96128.0,0.37035147]
[1739433270485,0.68037574,96129.0,96128.0,0.37035147]
[1739433271398,0.6163023,96129.0,96128.0,0.28712747]
[1739433271674,0.6013023,96129.0,96128.0,0.26632147]
[1739433271910,0.6233023,96129.0,96128.0,0.20390347]
[1739433273488,0.7963023,96129.0,96128.0,0.18309747]
[1739433273711,0.89880595,96129.0,96128.0,0.12067947]
[1739433275463,0.306043,96127.0,96126.0,1.36618343]
[1739433275640,0.43154665,96127.0,96126.0,1.26732452]
[1739433275841,0.4462969,96127.0,96126.0,1.24651852]
[1739433276282,0.4462969,96127.0,96126.0,1.22571252]
[1739433276423,0.60183084,96127.0,96126.0,1.16329452]
[1739433277035,0.60183084,96127.0,96126.0,1.12168252]
[1739433277458,0.60883084,96127.0,96126.0,1.08007052]
[1739433277730,0.62383084,96127.0,96126.0,1.05926452]
[1739433277929,0.62383084,96127.0,96126.0,1.03845852]
[1739433278313,0.62383084,96127.0,96126.0,0.99684652]
[1739433278547,0.62924689,96127.0,96126.0,0.99684652]
[1739433278699,0.62924689,96127.0,96126.0,0.96431832]
[1739433279922,0.95724689,96127.0,96126.0,0.96431832]
[1739433280337,0.85474324,96127.0,96126.0,0.96431832]
[1739433281074,0.84932719,96127.0,96126.0,0.96431832]
[1739433287323,0.82632719,96127.0,96126.0,0.96431832]
[1739433289955,0.82632719,96127.0,96126.0,0.96454218]
[1739433290697,0.82632719,96127.0,96126.0,0.90599677]
[1739433302239,0.82643379,96127.0,96126.0,0.90599677]
[1739433304633,0.82643379,96127.0,96126.0,0.84745179]
[1739433305846,0.82643379,96127.0,96126.0,0.89285179]
[1739433306044,0.82643379,96127.0,96126.0,0.97115179]
[1739433306271,0.67643379,96127.0,96126.0,0.97115179]
[1739433306471,0.69588473,96127.0,96126.0,0.97115179]
[1739433306655,0.68088473,96127.0,96126.0,0.97115179]
[1739433306874,0.90248473,96127.0,96126.0,0.54150385]
[1739433307030,0.90248473,96127.0,96093.0,0.04602365]
[1739433307031,0.2556,96126.0,96123.0,0.68134147]
[1739433307366,0.2556,96126.0,96120.0,0.67543163]
[1739433307367,0.179053,96121.0,96120.0,0.67543163]
[1739433307572,0.329053,96121.0,96120.0,0.59875608]
[1739433307728,0.34134177,96121.0,96120.0,0.59875608]
[1739433307931,1.06079271,96121.0,96120.0,0.49472108]
[1739433308154,1.06079271,96121.0,96120.0,0.36884826]
[1739433308365,1.06079271,96121.0,96120.0,0.24630435]
[1739433308567,1.08200387,96121.0,96120.0,0.24630435]
[1739433308771,1.08840387,96121.0,96120.0,0.24630435]
[1739433309026,1.06895293,96121.0,96120.0,0.20469035]
[1739433309226,1.06895293,96121.0,96120.0,0.13893888]
[1739433309446,1.06895293,96121.0,96120.0,0.13434999]
[1739433309864,1.06895293,96121.0,96120.0,0.11354299]
[1739433310112,1.06895293,96121.0,96120.0,0.07192899]
[1739433310311,0.306095,96095.0,96093.0,0.00022365]
[1739433310537,0.634095,96095.0,96093.0,0.00022365]
[1739433310714,0.66938328,96095.0,96093.0,0.00022365]
[1739433310970,0.306097,96094.0,96093.0,3e-07]
[1739433311498,0.31837407,96094.0,96093.0,3e-07]
[1739433311703,0.33778512,96094.0,96093.0,3e-07]
[1739433312362,0.34478512,96094.0,96093.0,3e-07]
[1739433312784,0.36778512,96094.0,96093.0,3e-07]
[1739433313371,0.306118,96081.0,96075.0,0.0781]
[1739433313569,0.43162165,96081.0,96075.0,0.0781]
[1739433313789,0.46330953,96081.0,96069.0,0.0771]
[1739433314161,0.15,96070.0,96066.0,0.0493]
[1739433314359,0.156145,96064.0,96063.0,0.0771]
[1739433314563,0.25864865,96064.0,96063.0,0.0771]
[1739433314793,0.27087373,96064.0,96063.0,0.0771]
[1739433314963,0.29028478,96064.0,96063.0,0.0771]
[1739433315553,0.29728478,96064.0,96063.0,0.0771]
[1739433316948,0.31228478,96064.0,96063.0,0.0771]
[1739433317311,0.29028478,96064.0,96063.0,0.0771]
[1739433317722,0.31228478,96064.0,96063.0,0.0771]
[1739433318124,0.29287373,96064.0,96063.0,0.0771]
[1739433318335,0.31221978,96064.0,96063.0,0.0771]
[1739433318550,0.64021978,96064.0,96063.0,0.0771]
[1739433318745,0.306147,96063.0,96062.0,0.00066368]
[1739433318962,0.4208727,96063.0,96062.0,0.00066368]
[1739433319696,0.44021875,96063.0,96062.0,0.00066368]
[1739433319892,0.45521875,96063.0,96062.0,0.00066368]
[1739433320047,0.5577224,96063.0,96062.0,0.00066368]
[1739433320635,0.5647224,96063.0,96062.0,0.00066368]
[1739433321529,0.46221875,96063.0,96062.0,0.00066368]
[1739433323066,0.4499967,96063.0,96062.0,0.00066368]
[1739433323241,0.46220804,96063.0,96062.0,0.00066368]
[1739433324444,0.79020804,96063.0,96062.0,0.00066368]
[1739433327613,0.306163,96053.0,96052.0,0.07653733]
[1739433327935,0.306171,96048.0,96047.0,0.047]
[1739433328256,0.4208707,96048.0,96047.0,0.0471315]
[1739433328458,0.44021675,96048.0,96047.0,0.0471315]
[1739433328687,0.45052633,96048.0,96047.0,0.0471315]
[1739433329431,0.46552633,96048.0,96047.0,0.0471315]
[1739433330404,0.47252633,96048.0,96047.0,0.0471315]
[1739433330756,0.47252633,96048.0,96047.0,0.1253315]
[1739433331179,0.45052633,96048.0,96047.0,0.1253315]
[1739433331595,0.47252633,96048.0,96047.0,0.1253315]
[1739433333462,0.80052633,96048.0,96047.0,0.1253315]
[1739433334423,0.78118028,96048.0,96047.0,0.1253315]
[1739433335996,0.78118028,96048.0,96047.0,0.0783315]
[1739433336729,0.77418028,96048.0,96047.0,0.0783315]
[1739433337077,0.78118028,96048.0,96047.0,0.0783315]
[1739433337251,0.77418028,96048.0,96047.0,0.0783315]
[1739433337414,0.75918028,96048.0,96047.0,0.0784381]
[1739433337608,0.78118028,96048.0,96047.0,0.0784381]
[1739433337860,0.78118028,96048.0,96047.0,0.0002381]
[1739433338276,0.76618028,96048.0,96047.0,0.0002381]
[1739433338467,0.78118028,96048.0,96047.0,0.0002381]
[1739433339231,0.80059792,96048.0,96047.0,0.0002381]
[1739433341010,0.80059792,96048.0,96041.0,0.0766]
[1739433341011,0.156181,96042.0,96041.0,0.0766]
[1739433341210,0.25868465,96042.0,96041.0,0.07664402]
[1739433341610,0.27088059,96042.0,96041.0,0.07664402]
[1739433342347,0.30429823,96042.0,96041.0,0.07664402]
[1739433343344,0.31129823,96042.0,96041.0,0.07664402]
[1739433345147,0.63929823,96042.0,96041.0,0.07664402]
[1739433348829,0.62529823,96042.0,96041.0,0.07664402]
[1739433349666,0.61829823,96042.0,96041.0,0.07664402]
[1739433349875,0.62529823,96042.0,96041.0,0.07675062]
[1739433350284,0.63929823,96042.0,96041.0,0.07675062]
[1739433351630,0.63929823,96042.0,96041.0,0.00015062]
[1739433353343,0.61988059,96042.0,96041.0,0.00015062]
[1739433356559,0.61988059,96042.0,96041.0,0.07645062]
[1739433359361,0.61988059,96042.0,96041.0,0.00015062]
[1739433361575,0.76988059,96042.0,96041.0,0.00015062]
[1739433362346,0.76288059,96042.0,96041.0,0.00015062]
[1739433362591,0.76988059,96042.0,96041.0,0.00015062]
[1739433362803,0.8608543,96042.0,96041.0,0.00015062]
[1739433363239,0.8768543,96042.0,96041.0,0.00015062]
[1739433363434,0.8918543,96042.0,96041.0,0.00015062]
[1739433363904,0.8698543,96042.0,96041.0,0.00015062]
[1739433364078,0.77188059,96042.0,96041.0,0.00015062]
[1739433364284,0.79388059,96042.0,96041.0,0.00015062]
[1739433368249,0.329183,96041.0,96040.0,0.00021316]
[1739433368449,0.27550365,96041.0,96023.0,0.0001066]
[1739433368663,0.25871365,96024.0,96023.0,0.00023872]
[1739433369045,0.27088265,96024.0,96023.0,0.00023872]
[1739433369819,0.27788265,96024.0,96023.0,0.00023872]
[1739433370022,0.29732547,96024.0,96023.0,0.00023872]
[1739433370222,0.31132547,96024.0,96023.0,0.00023872]
[1739433370427,0.30432547,96024.0,96023.0,0.00023872]
[1739433370847,0.29732547,96024.0,96023.0,0.00023872]
[1739433371059,0.29732547,96024.0,96022.0,0.0486]
[1739433371060,0.34242658,96024.0,96022.0,0.04856116]
[1739433371266,0.10250365,96023.0,96022.0,0.04862072]
[1739433371668,0.11467263,96023.0,96022.0,0.04862072]
[1739433371960,0.44267263,96023.0,96022.0,0.04862072]
[1739433373056,0.49321656,96023.0,96022.0,0.04862072]
[1739433373457,0.50021656,96023.0,96022.0,0.04862072]
[1739433373687,0.65642856,96023.0,96022.0,0.04872732]
[1739433374084,0.67042856,96023.0,96022.0,0.04872732]
[1739433374668,0.51421656,96023.0,96022.0,0.04872732]
[1739433374845,0.67042856,96023.0,96022.0,0.13092732]
[1739433375454,0.63932745,96023.0,96022.0,0.13092732]
[1739433375700,0.48311545,96023.0,96022.0,0.13092732]
[1739433375943,0.63932745,96023.0,96022.0,0.13092732]
[1739433376354,0.48311545,96023.0,96022.0,0.13092732]
[1739433377092,0.63932745,96023.0,96022.0,0.13092732]
[1739433377751,0.48311545,96023.0,96022.0,0.13092732]
[1739433377951,0.34243961,96023.0,96022.0,0.13092732]
[1739433378331,0.18622761,96023.0,96022.0,0.13092732]
[1739433378983,0.18622761,96023.0,96022.0,0.14402005]
[1739433379218,0.17405863,96023.0,96022.0,0.14402005]
[1739433379636,0.18622697,96023.0,96022.0,0.13092732]
[1739433380047,0.18622697,96023.0,96022.0,0.28714132]
[1739433380896,0.15511481,96023.0,96022.0,0.29772976]
[1739433381490,0.14111481,96023.0,96022.0,0.29772976]
[1739433381915,0.12594647,96023.0,96022.0,0.29772976]
[1739433382312,0.12594647,96023.0,96022.0,0.14151576]
[1739433382695,0.14211481,96023.0,96022.0,0.29772976]
[1739433383869,0.12994647,96023.0,96022.0,0.29772976]
[1739433384426,0.12994647,96023.0,96022.0,0.14151576]
[1739433384885,0.14211481,96023.0,96022.0,0.14151576]
[1739433385287,0.14211481,96023.0,96022.0,0.15151576]
[1739433385697,0.14211481,96023.0,96022.0,0.30772976]
[1739433385899,0.14233868,96023.0,96022.0,0.30772976]
[1739433386046,0.13017034,96023.0,96022.0,0.30772976]
[1739433386671,0.13017034,96023.0,96022.0,0.15151576]
[1739433386873,0.13017034,96023.0,96022.0,0.14092732]
[1739433387295,0.14234362,96023.0,96022.0,0.14092732]
[1739433387587,0.13017034,96023.0,96022.0,0.14092732]
[1739433387716,0.14234362,96023.0,96022.0,0.14092732]
[1739433387955,0.14234362,96023.0,96022.0,0.29714132]
[1739433388162,0.13017034,96023.0,96022.0,0.29714132]
[1739433388568,0.14234344,96023.0,96022.0,0.29714132]
[1739433388767,0.13017034,96023.0,96022.0,0.29714132]
[1739433389123,0.13017034,96023.0,96022.0,0.30714132]
[1739433389812,0.14234316,96023.0,96022.0,0.30714132]
[1739433390074,0.13017034,96023.0,96022.0,0.30714132]
[1739433392563,0.13017034,96023.0,96022.0,0.15092732]
[1739433392744,0.13017034,96023.0,96022.0,0.30714132]
[1739433393447,0.1734531,96023.0,96022.0,0.30714132]
[1739433398525,0.1734531,96023.0,96022.0,0.15092732]
[1739433398848,0.1734531,96023.0,96022.0,0.18164185]
[1739433399056,0.1734531,96023.0,96022.0,0.30714132]
[1739433399615,0.16127554,96023.0,96022.0,0.30714132]
[1739433399823,0.1734531,96023.0,96022.0,0.30714132]
[1739433406879,0.1423479,96023.0,96022.0,0.30714132]
[1739433408904,0.17348369,96023.0,96022.0,0.30714132]
[1739433409102,0.17348369,96023.0,96022.0,0.15092732]
[1739433409300,0.17348369,96023.0,96022.0,0.30714132]
[1739433410343,0.17348369,96023.0,96022.0,0.30614132]
[1739433413297,0.16948369,96023.0,96022.0,0.30614132]
[1739433413527,0.17048369,96023.0,96022.0,0.30614132]
[1739433413732,0.1393479,96023.0,96022.0,0.30614132]
[1739433414066,0.1353479,96023.0,96022.0,0.30614132]
[1739433414523,0.1343479,96023.0,96022.0,0.30614132]
[1739433416249,0.1353479,96023.0,96022.0,0.30614132]
[1739433416756,0.1343479,96023.0,96022.0,0.30614132]
[1739433417003,0.1353479,96023.0,96022.0,0.30614132]
[1739433417630,0.1363479,96023.0,96022.0,0.30614132]
[1739433417874,0.1353479,96023.0,96022.0,0.30614132]
[1739433418367,0.1373479,96023.0,96022.0,0.30614132]
[1739433428624,0.12517034,96023.0,96022.0,0.30614132]
[1739433441280,0.02266669,96023.0,96022.0,0.47914132]
[1739433441541,0.00022387,96042.0,96041.0,0.176183]
[1739433441728,0.10272752,96042.0,96041.0,0.301224]
[1739433441946,0.10272752,96042.0,96041.0,0.300183]
[1739433442884,0.10572752,96042.0,96041.0,0.300183]
[1739433443530,0.10772752,96042.0,96041.0,0.300183]
[1739433445731,0.00522387,96042.0,96041.0,0.450183]
[1739433445936,0.00522387,96042.0,96041.0,0.49428413]
[1739433446515,0.00322387,96042.0,96041.0,0.49428413]
[1739433446919,0.00422387,96042.0,96041.0,0.49528413]
[1739433447669,0.00122387,96042.0,96041.0,0.49528413]
[1739433447866,0.00122387,96042.0,96041.0,0.49728413]
[1739433453444,0.00122387,96042.0,96041.0,0.47428413]
[1739433454403,0.00022387,96042.0,96041.0,0.47328413]
[1739433454644,0.00022387,96042.0,96041.0,0.47128413]
[1739433454913,0.00122387,96042.0,96041.0,0.47328413]
[1739433455084,0.00122387,96042.0,96041.0,0.47128413]
[1739433455289,0.00022387,96042.0,96041.0,0.47128413]
[1739433455705,0.00022387,96042.0,96041.0,0.47228413]